bitfinex-derivatives/quotes_SOLF0:USTF0_20250714
["timestamp","ask_amount","ask_price","bid_price","bid_amount"]
[1752504146943,519.72,166.34,166.25,6.75463041]
[1752504147342,519.72,166.34,166.3,6.0117]
[1752504148039,519.72,166.34,166.25,6.75463041]
[1752504148639,6.75463041,166.33,166.18,5.04281089]
[1752504148842,4.93480805,166.32,166.21,6.75463041]
[1752504149143,186.74,166.31,166.21,6.75463041]
[1752504150540,186.74,166.31,166.27,6.75463041]
[1752504150746,186.74,166.31,166.3,6.0117]
[1752504151646,519.72,166.34,166.27,6.75463041]
[1752504151848,186.7,166.36,166.27,6.75463041]
[1752504152141,186.7,166.36,166.3,6.75463041]
[1752504152537,186.7,166.36,166.29,6.75463041]
[1752504153140,186.7,166.36,166.34,6.0103]
[1752504153339,186.7,166.36,166.29,6.75463041]
[1752504154140,186.7,166.36,166.26,6.74805317]
[1752504154648,191.63480805,166.36,166.24,6.74805317]
[1752504154943,191.63480805,166.36,166.21,12.0294]
[1752504154944,6.75440098,166.33,166.21,18.78380098]
[1752504155141,6.75440098,166.33,166.21,6.75440098]
[1752504155348,6.75440098,166.33,166.27,6.0125]
[1752504155537,209.69480805,166.36,166.21,6.75440098]
[1752504155739,22.99480805,166.35,166.21,6.75440098]
[1752504155945,6.75440098,166.3,166.19,6.75440098]
[1752504156146,186.62,166.29,166.19,6.75440098]
[1752504157745,186.62,166.29,166.24,6.0139]
[1752504157949,186.62,166.29,166.22,6.75440098]
[1752504158150,186.62,166.29,166.14,5.04281089]
[1752504158450,186.62,166.29,166.18,6.75440098]
[1752504159346,186.62,166.29,166.22,6.0144]
[1752504159747,186.62,166.29,166.18,6.75440098]
[1752504159949,186.62,166.29,166.15,5.04281089]
[1752504159950,6.75440098,166.27,166.19,6.0154]
[1752504160152,6.75440098,166.27,166.16,6.75440098]
[1752504160750,193.37440098,166.29,166.16,6.75440098]
[1752504161054,191.49480805,166.29,166.25,6.0135]
[1752504161251,186.56,166.29,166.22,6.75440098]
[1752504161651,4.93480805,166.3,166.27,6.0126]
[1752504161849,186.56,166.3,166.27,6.0126]
[1752504162051,186.56,166.3,166.22,6.75440098]
[1752504162651,186.56,166.3,166.28,6.0124]
[1752504162852,186.56,166.3,166.25,6.75440098]
[1752504163052,186.56,166.3,166.18,12.0315]
[1752504163256,191.49480805,166.3,166.25,6.0134]
[1752504164554,191.49480805,166.3,166.21,6.75440098]
[1752504165154,191.49480805,166.3,166.24,6.0137]
[1752504165351,4.93480805,166.29,166.21,6.75440098]
[1752504165855,191.49480805,166.3,166.23,6.0141]
[1752504166051,198.24920903,166.3,166.19,6.75440098]
[1752504166253,4.93480805,166.29,166.19,6.75440098]
[1752504166456,4.93480805,166.29,166.23,6.014]
[1752504166756,4.93480805,166.29,166.19,6.75440098]
[1752504166956,186.48,166.29,166.25,6.0133]
[1752504167260,186.48,166.29,166.22,6.75440098]
[1752504167760,186.48,166.29,166.28,6.0124]
[1752504167960,186.48,166.29,166.25,6.75440098]
[1752504168860,186.48,166.29,166.27,6.0127]
[1752504169359,186.48,166.29,166.25,6.75440098]
[1752504169360,186.48,166.29,166.28,6.0124]
[1752504169758,519.66,166.32,166.25,6.75440098]
[1752504170059,519.66,166.32,166.27,6.0128]
[1752504170261,519.66,166.32,166.25,6.75440098]
[1752504170456,519.66,166.32,166.28,6.0122]
[1752504170857,191.35480805,166.33,166.28,6.0122]
[1752504171058,198.10920903,166.33,166.22,6.75440098]
[1752504171259,11.68920903,166.3,166.2,6.75440098]
[1752504171561,186.4,166.29,166.2,6.75440098]
[1752504171756,186.4,166.29,166.23,6.014]
[1752504171960,191.33480805,166.29,166.23,6.014]
[1752504172163,191.33480805,166.29,166.2,6.75440098]
[1752504172463,191.33480805,166.29,166.23,6.014]
[1752504172670,191.33480805,166.29,166.2,6.75440098]
[1752504173569,6.75440098,166.27,166.17,6.75440098]
[1752504173770,11.68920903,166.27,166.17,6.75440098]
[1752504173966,11.68920903,166.27,166.2,6.0151]
[1752504174172,6.75440098,166.27,166.17,6.75440098]
[1752504174569,4.93480805,166.26,166.11,5.04281089]
[1752504174867,6.75440098,166.19,166.07,6.75440098]
[1752504175172,193.09440098,166.18,166.07,6.75440098]
[1752504175571,6.0169,166.16,166.02,5.04281089]
[1752504175867,193.09440098,166.18,166.07,6.75440098]
[1752504176071,199.11080098,166.18,166.11,6.0183]
[1752504176271,193.09440098,166.18,166.07,6.75440098]
[1752504176471,6.75440098,166.15,166.01,5.04281089]
[1752504176673,6.75440098,166.13,166.0,6.75440098]
[1752504176873,6.75440098,166.1,166.0,6.75440098]
[1752504177069,186.36,166.1,165.98,6.75440098]
[1752504177266,186.36,166.1,166.01,6.75440098]
[1752504177781,186.36,166.14,166.1,6.0189]
[1752504178071,186.36,166.14,166.11,6.0183]
[1752504178474,186.36,166.14,166.07,6.75440098]
[1752504178672,186.36,166.14,166.1,6.0189]
[1752504179074,186.36,166.14,166.11,6.0186]
[1752504179669,519.78,166.15,166.07,6.75440098]
[1752504179874,706.2,166.15,166.07,6.75440098]
[1752504180767,706.2,166.15,166.1,6.0187]
[1752504180970,706.2,166.15,166.07,6.75440098]
[1752504181881,706.2,166.15,166.12,6.0182]
[1752504182379,186.44,166.14,166.12,6.0182]
[1752504182573,519.78,166.15,166.1,6.75440098]
[1752504182773,186.44,166.17,166.1,6.75440098]
[1752504183172,192.4567,166.17,166.13,6.0176]
[1752504183573,192.4567,166.17,166.1,6.75440098]
[1752504183574,186.44,166.17,166.14,6.0173]
[1752504183776,186.44,166.17,166.1,6.75440098]
[1752504184275,524.94488101,166.23,166.13,6.75440098]
[1752504184470,520.04,166.23,166.16,6.75440098]
[1752504184671,186.44,166.22,166.16,6.75440098]
[1752504185283,186.44,166.22,166.07,12.0398]
[1752504185482,193.19440098,166.22,166.11,6.75440098]
[1752504185682,193.19440098,166.22,166.06,520.06]
[1752504185980,211.25440098,166.22,166.13,6.0178]
[1752504186181,211.25440098,166.22,166.09,6.75440098]
[1752504186582,6.0168,166.17,166.09,6.75440098]
[1752504186786,186.44,166.16,166.09,6.75440098]
[1752504186980,186.44,166.16,166.06,6.75440098]
[1752504187181,6.0172,166.15,166.06,6.75440098]
[1752504187479,186.44,166.16,166.06,6.75440098]
[1752504187880,186.44,166.16,166.09,6.75440098]
[1752504188983,186.44,166.16,166.07,6.75440098]
[1752504189382,186.44,166.18,166.1,6.75440098]
[1752504191187,186.44,166.18,166.09,6.75440098]
[1752504191388,186.44,166.18,166.04,12.0419]
[1752504191686,186.44,166.18,166.08,6.75440098]
[1752504191885,186.44,166.18,166.12,6.018]
[1752504192086,186.44,166.18,166.08,6.75440098]
[1752504192485,186.44,166.18,166.04,12.0419]
[1752504192684,186.44,166.18,166.1,6.75440098]
[1752504192886,6.0167,166.17,166.14,6.0174]
[1752504193283,6.0167,166.17,166.1,6.75440098]
[1752504193482,6.0167,166.17,166.13,6.0178]
[1752504193682,186.44,166.18,166.1,6.75440098]
[1752504193983,186.44,166.18,166.13,6.0177]
[1752504194286,186.44,166.18,166.1,6.75440098]
[1752504194787,538.1,166.23,166.1,6.75440098]
[1752504194788,186.42,166.2,166.16,6.75440098]
[1752504194980,4.90090184,166.29,166.19,6.75440098]
[1752504195188,186.42,166.28,166.19,6.75440098]
[1752504195587,186.42,166.28,166.12,12.0364]
[1752504195888,186.42,166.28,166.19,6.75440098]
[1752504196990,186.42,166.28,166.24,6.0139]
[1752504197589,186.42,166.28,166.17,6.75440098]
[1752504198593,186.42,166.28,166.21,6.0148]
[1752504199389,186.42,166.28,166.22,6.0146]
[1752504199690,186.42,166.28,166.12,12.0364]
[1752504199891,211.23440098,166.28,166.19,6.0156]
[1752504200092,6.75440098,166.25,166.14,6.75440098]
[1752504201589,6.75440098,166.25,166.18,6.0159]
[1752504201791,6.75440098,166.25,166.14,6.75440098]
[1752504201991,6.75440098,166.25,166.18,6.0158]
[1752504203495,4.90090184,166.28,166.17,6.75440098]
[1752504203798,186.34,166.27,166.2,6.75440098]
[1752504203999,186.34,166.27,166.22,6.0146]
[1752504204389,186.34,166.27,166.2,6.75440098]
[1752504204594,186.34,166.27,166.21,6.0147]
[1752504205201,186.34,166.27,166.22,6.0146]
[1752504205498,186.34,166.27,166.19,6.75440098]
[1752504205697,186.34,166.27,166.21,6.0148]
[1752504207195,186.34,166.27,166.17,6.75440098]
[1752504207399,6.75440098,166.25,166.15,6.75440098]
[1752504207800,6.75440098,166.25,166.08,520.12]
[1752504207801,6.75440098,166.25,166.17,6.0162]
[1752504208499,4.90090184,166.26,166.14,6.75440098]
[1752504208707,186.3,166.25,166.14,6.75440098]
[1752504208896,186.3,166.25,166.17,6.0161]
[1752504209098,6.0151,166.21,166.17,6.0161]
[1752504209696,4.90090184,166.27,166.17,6.75440098]
[1752504209900,186.28,166.26,166.17,6.75440098]
[1752504210301,6.0139,166.24,166.21,6.0149]
[1752504210799,186.28,166.26,166.17,6.75440098]
[1752504211004,186.28,166.26,166.2,6.75440098]
[1752504211394,192.2932,166.26,166.23,6.014]
[1752504211598,186.28,166.26,166.2,6.75440098]
[1752504212094,186.28,166.26,166.15,12.0343]
[1752504212095,192.2933,166.26,166.22,6.0143]
[1752504212295,186.28,166.26,166.2,6.75440098]
[1752504212510,520.12,166.31,166.23,6.75440098]
[1752504213094,520.12,166.31,166.27,6.0128]
[1752504213300,520.12,166.31,166.23,6.75440098]
[1752504214008,520.12,166.31,166.25,6.0134]
[1752504214201,520.12,166.31,166.23,6.75440098]
[1752504215105,520.12,166.31,166.27,6.0126]
[1752504215507,520.12,166.31,166.24,6.75254526]
[1752504215813,526.87254526,166.31,166.21,6.75254526]
[1752504216011,549.8334471,166.31,166.14,12.0344]
[1752504216214,549.8334471,166.31,166.2,6.0151]
[1752504216215,6.75254526,166.29,166.2,6.0151]
[1752504216511,11.6534471,166.29,166.19,6.75254526]
[1752504216706,11.6534471,166.29,166.2,6.015]
[1752504217405,6.0143,166.23,166.2,6.015]
[1752504218010,6.014,166.24,166.2,6.015]
[1752504218313,186.22,166.25,166.2,6.015]
[1752504218716,6.0143,166.23,166.2,6.015]
[1752504219012,6.0143,166.23,166.19,6.0155]
[1752504219200,6.0147,166.22,166.19,6.0155]
[1752504219399,186.22,166.25,166.15,6.75254526]
[1752504220410,6.0153,166.21,166.17,6.0164]
[1752504220629,186.22,166.25,166.08,520.12]
[1752504220810,6.76259171,166.23,166.12,6.76259171]
[1752504221006,6.0155,166.2,166.16,6.0166]
[1752504221412,6.0148,166.22,166.12,6.76259171]
[1752504221602,192.98259171,166.25,166.08,532.1592]
[1752504221603,192.98259171,166.25,166.15,6.76259171]
[1752504222007,6.0156,166.2,166.16,6.0165]
[1752504222211,4.90090184,166.24,166.16,6.0165]
[1752504222406,4.90090184,166.24,166.15,6.76259171]
[1752504222613,186.22,166.25,166.15,6.76259171]
[1752504222915,186.22,166.25,166.18,6.76259171]
[1752504223111,186.22,166.25,166.21,6.015]
[1752504223314,186.22,166.25,166.18,6.76259171]
[1752504223914,186.22,166.25,166.21,6.0149]
[1752504224113,186.22,166.25,166.18,6.76259171]
[1752504224516,186.22,166.25,166.22,6.0144]
[1752504225020,186.22,166.25,166.18,6.76259171]
[1752504225314,186.22,166.25,166.22,6.0143]
[1752504225518,186.22,166.25,166.18,6.76259171]
[1752504225912,186.22,166.25,166.23,6.014]
[1752504226319,186.22,166.25,166.11,12.0367]
[1752504226514,186.22,166.25,166.22,6.0146]
[1752504226818,186.22,166.25,166.18,6.76259171]
[1752504227017,4.90090184,166.3,166.21,6.76259171]
[1752504227212,186.14,166.29,166.21,6.76259171]
[1752504228415,186.14,166.29,166.24,6.0137]
[1752504230714,186.14,166.29,166.25,6.0135]
[1752504231519,186.14,166.29,166.23,6.0141]
[1752504231710,186.14,166.29,166.19,6.76259171]
[1752504232521,192.90259171,166.29,166.19,6.76259171]
[1752504232822,4.90090184,166.28,166.17,6.76259171]
[1752504233222,4.90090184,166.27,166.2,6.0152]
[1752504233423,4.90090184,166.27,166.17,6.76259171]
[1752504233718,4.90090184,166.27,166.2,6.0153]
[1752504234216,6.76259171,166.26,166.19,6.0156]
[1752504234623,6.76259171,166.26,166.15,6.76259171]
[1752504234822,6.76259171,166.26,166.2,6.0151]
[1752504235124,11.66349355,166.26,166.2,6.0151]
[1752504236020,11.66349355,166.26,166.21,6.0149]
[1752504236323,186.04,166.25,166.18,6.76259171]
[1752504237227,186.04,166.25,166.23,6.0141]
[1752504237417,186.04,166.25,166.21,6.76259171]
[1752504237818,186.04,166.25,166.24,6.0139]
[1752504238021,186.04,166.25,166.21,6.76259171]
[1752504238022,186.02,166.29,166.21,6.76259171]
[1752504238221,190.92090184,166.29,166.24,6.0137]
[1752504238524,186.02,166.29,166.24,6.0137]
[1752504238724,190.9625647,166.29,166.24,6.0137]
[1752504238921,186.02,166.29,166.24,6.0137]
[1752504239321,186.02,166.29,166.23,6.0141]
[1752504239529,190.97162701,166.29,166.19,6.76259171]
[1752504240024,6.76259171,166.27,166.16,6.76259171]
[1752504240426,6.76259171,166.27,166.19,6.0156]
[1752504240823,24.82259171,166.27,166.16,6.76259171]
[1752504241022,6.76259171,166.24,166.15,5.05546205]
[1752504241224,185.98,166.23,166.13,6.67852909]
[1752504241630,185.98,166.23,166.16,6.0165]
[1752504242128,185.98,166.23,166.17,6.0162]
[1752504242331,185.98,166.23,166.12,6.76259171]
[1752504242526,6.76259171,166.21,166.13,6.0178]
[1752504242831,24.82259171,166.21,166.11,11.90831364]
[1752504243022,24.82259171,166.21,166.14,6.0173]
[1752504243223,24.82259171,166.21,166.11,18.67090535]
[1752504243522,192.74259171,166.23,166.11,18.67090535]
[1752504243727,210.80259171,166.23,166.11,8.65311171]
[1752504243933,210.80259171,166.23,166.14,6.76259171]
[1752504244226,6.0154,166.2,166.14,6.76259171]
[1752504244625,210.80259171,166.23,166.14,6.76259171]
[1752504244828,210.80259171,166.23,166.11,1.89052]
[1752504245226,6.0159,166.19,166.15,6.0169]
[1752504245423,18.06,166.21,166.11,1.89052]
[1752504245627,6.76259171,166.13,166.11,1.89052]
[1752504245928,186.9,166.12,166.11,1.89052]
[1752504246123,193.66259171,166.12,166.02,16.69632273]
[1752504246332,6.0204,166.07,166.02,16.69632273]
[1752504246721,6.76259171,166.09,166.02,16.69632273]
[1752504246931,6.76259171,166.06,166.02,16.69632273]
[1752504247228,186.88,166.05,166.02,16.69632273]
[1752504247430,6.0215,166.03,166.02,16.69632273]
[1752504247823,12.78409171,166.03,166.02,16.69632273]
[1752504248319,6.0215,166.03,166.02,16.69632273]
[1752504248522,6.76259171,166.03,165.98,23.37485183]
[1752504248718,6.76259171,166.0,165.98,23.37485183]
[1752504248919,186.92,165.99,165.98,23.37485183]
[1752504249119,192.9429,165.99,165.98,23.37485183]
[1752504249528,186.92,165.99,165.98,23.37485183]
[1752504250125,12.78419171,166.03,165.98,23.37485183]
[1752504250432,186.94,166.02,165.98,30.13744354]
[1752504250832,186.94,166.02,166.0,6.0223]
[1752504251129,519.92,166.1,166.01,6.76259171]
[1752504251528,707.3,166.1,166.01,6.76259171]
[1752504251727,707.3,166.1,166.07,6.02]
[1752504251926,707.3,166.1,166.04,6.76259171]
[1752504252127,187.4,166.14,166.07,6.76259171]
[1752504252428,187.4,166.13,166.07,6.76259171]
[1752504252631,4.89830282,166.15,166.1,6.76259171]
[1752504253024,192.27830282,166.16,166.12,6.0181]
[1752504253224,192.27830282,166.16,166.08,11.13481089]
[1752504253525,4.89830282,166.17,166.11,11.13481089]
[1752504253724,712.51830282,166.18,166.11,11.13481089]
[1752504254020,707.62,166.18,166.15,6.017]
[1752504254523,707.62,166.18,166.15,6.0169]
[1752504254724,187.36,166.18,166.11,11.13481089]
[1752504255224,187.36,166.18,166.15,6.017]
[1752504255725,187.36,166.18,166.16,6.0166]
[1752504256634,187.04,166.23,166.13,11.13481089]
[1752504257426,187.04,166.23,166.11,11.13481089]
[1752504257630,198.17481089,166.23,166.08,11.13481089]
[1752504257931,6.0162,166.18,166.08,11.13481089]
[1752504258234,187.02,166.18,166.08,11.13481089]
[1752504258432,187.02,166.18,166.14,6.0174]
[1752504258634,186.96,166.2,166.11,11.13481089]
[1752504259136,192.9754,166.2,166.16,6.0167]
[1752504259432,6.0161,166.18,166.13,6.0176]
[1752504259633,186.96,166.2,166.09,11.13481089]
[1752504259928,6.0176,166.14,166.09,6.0191]
[1752504260124,192.8976,166.14,166.03,11.13481089]
[1752504260528,6.0183,166.12,166.03,11.13481089]
[1752504260723,6.0183,166.12,165.96,520.14]
[1752504260724,186.88,166.14,166.0,11.13481089]
[1752504261036,6.0197,166.09,166.04,6.0211]
[1752504261533,6.0202,166.07,166.03,6.0215]
[1752504261733,187.44,166.07,165.97,11.13481089]
[1752504262233,193.4601,166.07,166.02,6.0216]
[1752504262431,187.44,166.07,165.97,11.13481089]
[1752504262626,193.4602,166.07,166.02,6.0217]
[1752504262823,187.44,166.07,165.97,11.13481089]
[1752504263431,187.36,166.07,166.0,11.13481089]
[1752504263831,187.36,166.07,166.04,6.0211]
[1752504264330,11.13481089,166.12,166.0,11.13481089]
[1752504264535,187.22,166.15,166.03,11.13481089]
[1752504265631,187.22,166.15,166.06,11.13481089]
[1752504266030,193.2374,166.15,166.06,11.13481089]
[1752504266437,6.0175,166.14,166.1,6.0187]
[1752504266633,187.22,166.15,166.06,11.13481089]
[1752504267131,193.2373,166.15,166.06,11.13481089]
[1752504267431,520.2,166.2,166.06,11.13481089]
[1752504267634,187.0,166.19,166.14,6.0175]
[1752504267834,187.0,166.19,166.09,11.13481089]
[1752504268135,187.0,166.19,166.12,11.13481089]
[1752504268333,187.0,166.19,166.01,11.13481089]
[1752504268334,187.0,166.19,166.1,11.13216849]
[1752504268835,187.0,166.19,166.16,6.0166]
[1752504269032,187.0,166.19,166.1,11.13216849]
[1752504269433,193.0159,166.19,166.1,11.13216849]
[1752504269635,187.0,166.19,166.1,11.13216849]
[1752504270030,6.0161,166.18,166.1,11.13216849]
[1752504270232,187.0,166.19,166.04,12.0418]
[1752504270440,187.0,166.19,166.09,11.13216849]
[1752504271231,193.0159,166.19,166.15,6.0171]
[1752504271438,187.0,166.19,166.09,11.13216849]
[1752504272331,18.06,166.27,166.12,11.13216849]
[1752504272538,186.56,166.26,166.12,11.13216849]
[1752504272935,6.0149,166.22,166.18,6.0161]
[1752504273239,186.56,166.26,166.15,11.13216849]
[1752504273439,520.18,166.28,166.18,11.13216849]
[1752504273639,186.48,166.27,166.18,11.13216849]
[1752504276039,186.48,166.27,166.23,6.014]
[1752504276235,186.48,166.27,166.18,11.13216849]
[1752504276743,186.48,166.27,166.25,6.0135]
[1752504276937,186.48,166.27,166.18,11.13216849]
[1752504277336,186.48,166.27,166.16,12.0334]
[1752504277637,186.48,166.27,166.21,11.13216849]
[1752504278635,186.48,166.27,166.26,6.0132]
[1752504279043,186.48,166.27,166.26,12.76777222]
[1752504279340,87.05560774,166.34,166.3,6.0116]
[1752504279644,87.05560774,166.34,166.24,6.75457222]
[1752504279645,186.08,166.33,166.24,6.75457222]
[1752504280043,186.08,166.33,166.26,6.75457222]
[1752504280246,186.08,166.33,166.29,6.0118]
[1752504280637,186.08,166.33,166.25,6.75457222]
[1752504281340,186.08,166.33,166.28,6.75457222]
[1752504281540,186.08,166.33,166.32,6.011]
[1752504281741,6.75457222,166.42,166.3,6.75457222]
[1752504281948,186.06,166.41,166.3,6.75457222]
[1752504282137,186.06,166.41,166.35,6.75457222]
[1752504282739,186.06,166.41,166.37,6.0088]
[1752504282945,186.06,166.41,166.35,6.75457222]
[1752504283341,186.06,166.41,166.38,6.0087]
[1752504283541,186.06,166.41,166.35,6.75457222]
[1752504283737,186.06,166.41,166.4,6.0081]
[1752504283938,186.06,166.41,166.27,12.0254]
[1752504283939,6.75457222,166.49,166.37,6.75457222]
[1752504284249,186.0,166.48,166.29,519.78]
[1752504284436,6.75457222,166.44,166.33,6.75457222]
[1752504284746,6.75457222,166.42,166.31,6.75457222]
[1752504285046,186.82,166.41,166.31,11.10503358]
[1752504285552,186.82,166.41,166.37,11.10503358]
[1752504286039,186.76,166.45,166.37,11.10503358]
[1752504286345,186.8,166.44,166.34,11.10503358]
[1752504286542,186.8,166.44,166.37,11.10503358]
[1752504288343,186.8,166.44,166.4,11.10503358]
[1752504289043,186.8,166.44,166.43,6.007]
[1752504289542,186.56,166.49,166.43,6.0067]
[1752504289740,186.56,166.49,166.4,11.10503358]
[1752504289936,11.10503358,166.47,166.37,6.0091]
[1752504290138,11.10503358,166.47,166.33,11.10503358]
[1752504290540,186.56,166.49,166.32,11.10503358]
[1752504290745,11.10503358,166.45,166.32,11.10503358]
[1752504290947,186.52,166.44,166.32,11.10503358]
[1752504291142,186.52,166.44,166.35,11.10503358]
[1752504293337,186.52,166.44,166.38,11.10503358]
[1752504294143,186.64,166.49,166.43,6.0068]
[1752504294446,186.64,166.49,166.31,12.0225]
[1752504294748,186.64,166.49,166.36,11.10503358]
[1752504295644,197.74503358,166.49,166.36,11.10503358]
[1752504296149,186.64,166.49,166.36,11.10503358]
[1752504296347,519.78,166.52,166.39,11.10503358]
[1752504296643,186.82,166.51,166.42,11.10503358]
[1752504296846,186.82,166.51,166.47,6.0054]
[1752504297439,186.82,166.51,166.42,11.10503358]
[1752504298146,186.82,166.51,166.49,6.0046]
[1752504298951,186.82,166.51,166.42,11.10503358]
[1752504299147,186.82,166.51,166.45,11.10503358]
[1752504299348,186.82,166.51,166.48,6.005]
[1752504299948,186.82,166.51,166.49,6.0048]
[1752504300146,186.82,166.51,166.45,11.10503358]
[1752504300749,186.82,166.51,166.35,12.0195]
[1752504300943,186.82,166.51,166.44,6.0064]
[1752504301146,186.82,166.51,166.38,11.10503358]
[1752504301445,186.82,166.51,166.46,6.0057]
[1752504301745,186.82,166.51,166.44,11.10503358]
[1752504302150,186.82,166.51,166.5,6.0045]
[1752504302350,186.42,166.55,166.47,11.10503358]
[1752504302548,519.3,166.6,166.53,6.0031]
[1752504302549,186.44,166.58,166.53,6.0031]
[1752504302747,186.44,166.58,166.47,11.10503358]
[1752504302948,186.44,166.58,166.43,12.0141]
[1752504303143,186.44,166.58,166.46,11.10503358]
[1752504303959,11.10503358,166.55,166.43,11.10503358]
[1752504304155,11.10503358,166.55,166.41,11.10503358]
[1752504304451,11.10503358,166.52,166.39,530.32503358]
[1752504304657,186.34,166.51,166.36,11.10503358]
[1752504304858,11.10503358,166.49,166.36,11.10503358]
[1752504305060,11.10503358,166.5,166.36,11.10503358]
[1752504305352,22.91369224,166.62,166.39,11.10503358]
[1752504305557,11.10503358,166.57,166.44,11.10503358]
[1752504305849,11.10503358,166.56,166.44,11.10503358]
[1752504306056,11.10503358,166.53,166.42,11.10503358]
[1752504306556,11.10503358,166.53,166.39,11.10503358]
[1752504306750,11.10503358,166.53,166.44,6.0064]
[1752504307653,11.10503358,166.53,166.43,6.0069]
[1752504308054,11.10503358,166.53,166.39,11.10503358]
[1752504308256,11.10503358,166.53,166.44,6.0064]
[1752504308852,11.10503358,166.53,166.43,6.0069]
[1752504309058,11.10503358,166.53,166.39,11.10503358]
[1752504309257,11.10503358,166.53,166.45,6.0061]
[1752504309448,11.10503358,166.53,166.39,11.10503358]
[1752504309957,186.52,166.55,166.39,11.10503358]
[1752504310160,11.10503358,166.58,166.42,11.10503358]
[1752504310352,11.10503358,166.58,166.32,519.1]
[1752504310353,186.14,166.55,166.45,11.10503358]
[1752504310756,186.14,166.55,166.42,11.10503358]
[1752504310957,186.14,166.55,166.43,5.93949045]
[1752504311152,186.14,166.55,166.42,11.10503358]
[1752504311358,186.14,166.55,166.45,11.10503358]
[1752504311956,186.14,166.55,166.51,6.0039]
[1752504312156,186.14,166.55,166.45,11.10503358]
[1752504312962,11.10503358,166.54,166.45,6.0062]
[1752504313162,29.16503358,166.54,166.39,11.10503358]
[1752504313463,11.10503358,166.51,166.45,6.0063]
[1752504313662,197.14503358,166.51,166.38,11.10503358]
[1752504313961,197.14503358,166.51,166.39,5.95441273]
[1752504314160,186.04,166.51,166.4,5.95441413]
[1752504314365,186.04,166.51,166.41,5.95441413]
[1752504314567,186.04,166.51,166.38,11.10503358]
[1752504314766,186.04,166.51,166.39,5.95959085]
[1752504314964,186.04,166.51,166.4,5.95959085]
[1752504315170,186.04,166.51,166.41,17.06462443]
[1752504315363,186.04,166.51,166.42,5.95959085]
[1752504315559,186.04,166.51,166.43,5.95959085]
[1752504315763,186.04,166.51,166.46,6.0059]
[1752504316565,186.04,166.51,166.41,11.10503358]
[1752504316763,186.04,166.51,166.42,5.97243294]
[1752504316965,186.04,166.51,166.45,6.006]
[1752504317163,186.04,166.51,166.41,11.10503358]
[1752504317369,186.04,166.51,166.42,5.97318638]
[1752504317573,186.04,166.51,166.43,5.97318638]
[1752504317869,197.14503358,166.51,166.44,5.97318638]
[1752504318173,215.20503358,166.51,166.41,6.0077]
[1752504318368,215.20503358,166.51,166.42,5.98065618]
[1752504318562,215.20503358,166.51,166.43,5.98065618]
[1752504318772,215.20503358,166.51,166.41,6.0076]
[1752504318969,215.20503358,166.51,166.42,5.98649499]
[1752504319276,215.20503358,166.51,166.43,5.98720791]
[1752504319473,215.20503358,166.51,166.37,11.10503358]
[1752504319673,215.20503358,166.51,166.38,5.99157831]
[1752504319975,215.20503358,166.51,166.35,11.10503358]
[1752504319976,215.20503358,166.51,166.39,5.99157831]
[1752504320169,215.20503358,166.51,166.4,5.99157831]
[1752504320474,215.20503358,166.51,166.41,5.99157831]
[1752504320675,215.20503358,166.51,166.42,5.99157831]
[1752504320871,215.20503358,166.51,166.43,5.99157831]
[1752504321069,197.14503358,166.51,166.35,11.10503358]
[1752504321266,197.14503358,166.51,166.4,6.0081]
[1752504321468,11.10503358,166.48,166.41,5.99840295]
[1752504321673,11.10503358,166.48,166.42,5.99840295]
[1752504321974,11.10503358,166.45,166.32,11.10503358]
[1752504322176,185.82,166.44,166.32,11.10503358]
[1752504322565,185.82,166.44,166.37,6.009]
[1752504323078,185.82,166.44,166.38,6.0087]
[1752504323280,185.82,166.44,166.32,11.10503358]
[1752504323576,185.82,166.44,166.38,6.0086]
[1752504323973,185.82,166.44,166.32,11.10503358]